bitfinex-derivatives/quotes_BTCF0:USTF0_20241029
["timestamp","ask_amount","ask_price","bid_price","bid_amount"]
[1730173834279,0.072503,70973.0,70972.0,0.3608]
[1730173834778,0.071503,70973.0,70972.0,0.3608]
[1730173836070,0.001,70973.0,70968.0,0.070507]
[1730173836275,0.070506,70970.0,70969.0,0.070506]
[1730173837869,0.10817711,70977.0,70968.0,0.10817711]
[1730173838069,0.070506,70969.0,70968.0,0.10817711]
[1730173839379,0.071506,70969.0,70968.0,0.10817711]
[1730173839880,0.070508,70967.0,70966.0,0.3616]
[1730173840081,0.07051,70966.0,70964.0,0.01166684]
[1730173840265,0.001,70969.0,70962.0,0.117813]
[1730173840473,0.070511,70965.0,70962.0,0.22599011]
[1730173840670,0.070512,70964.0,70963.0,0.21108741]
[1730173841868,0.071512,70964.0,70963.0,0.21108741]
[1730173842068,0.071512,70964.0,70963.0,0.070512]
[1730173842069,0.001,70964.0,70963.0,0.070512]
[1730173842468,0.002,70964.0,70963.0,0.070512]
[1730173842878,0.072511,70964.0,70963.0,0.070512]
[1730173843080,0.002,70964.0,70962.0,0.16679429]
[1730173843381,0.070514,70961.0,70957.0,0.07263169]
[1730173843584,0.10505143,70961.0,70957.0,0.07263169]
[1730173844969,0.10505143,70961.0,70959.0,0.01126979]
[1730173845172,0.10605143,70961.0,70959.0,0.01126979]
[1730173845378,0.10705143,70961.0,70957.0,0.00211369]
[1730173845579,0.15034416,70961.0,70957.0,0.00211369]
[1730173846268,0.14934416,70961.0,70957.0,0.00211369]
[1730173846472,0.14934416,70961.0,70957.0,0.12166031]
[1730173846668,0.10705143,70961.0,70957.0,0.12166031]
[1730173847085,0.10705143,70961.0,70957.0,0.0134832]
[1730173847277,0.15034463,70961.0,70957.0,0.0134832]
[1730173847477,0.10705143,70961.0,70957.0,0.0134832]
[1730173847677,0.10505143,70961.0,70957.0,0.0134832]
[1730173847872,0.10705143,70961.0,70957.0,0.0134832]
[1730173848583,0.072514,70961.0,70957.0,0.0134832]
[1730173849886,0.070517,70958.0,70957.0,0.0134832]
[1730173850581,0.070517,70958.0,70957.0,0.01136951]
[1730173850785,0.070525,70950.0,70949.0,0.070526]
[1730173851281,0.070525,70950.0,70949.0,0.17870311]
[1730173852390,0.071525,70950.0,70949.0,0.17870311]
[1730173852890,0.071525,70950.0,70949.0,0.10817711]
[1730173853086,0.072525,70950.0,70949.0,0.10817711]
[1730173853386,0.072525,70950.0,70949.0,0.17870311]
[1730173853976,0.002,70950.0,70949.0,0.17870311]
[1730173858887,0.072525,70950.0,70949.0,0.17870311]
[1730173861085,0.002,70950.0,70947.0,0.06030649]
[1730173861281,0.070527,70948.0,70947.0,0.06030649]
[1730173862285,0.070527,70948.0,70947.0,0.01180649]
[1730173862286,0.10507182,70948.0,70947.0,0.01180649]
[1730173862485,0.10507182,70948.0,70945.0,0.3608]
[1730173862486,0.070529,70946.0,70945.0,0.3608]
[1730173862682,0.10507382,70946.0,70945.0,0.3608]
[1730173862886,0.070529,70946.0,70945.0,0.3608]
[1730173864304,0.070529,70946.0,70945.0,0.3721319]
[1730173864490,0.071529,70946.0,70945.0,0.3721319]
[1730173864882,0.072529,70946.0,70945.0,0.3721319]
[1730173865087,0.072529,70946.0,70945.0,0.3608]
[1730173865800,0.070535,70940.0,70938.0,0.070537]
[1730173866193,0.070535,70940.0,70939.0,0.10652501]
[1730173866891,0.17871211,70940.0,70939.0,0.01172501]
[1730173867087,0.070538,70937.0,70936.0,0.36152]
[1730173867292,0.17871511,70937.0,70936.0,0.3608]
[1730173867594,0.17871511,70937.0,70936.0,0.58472749]
[1730173868491,0.17971511,70937.0,70936.0,0.58472749]
[1730173868694,0.18071511,70937.0,70936.0,0.58472749]
[1730173870487,0.18071511,70937.0,70936.0,0.372195]
[1730173872091,0.18071511,70937.0,70936.0,0.011395]
[1730173872293,0.070539,70936.0,70935.0,0.3608]
[1730173872894,0.11017711,70937.0,70933.0,0.070542]
[1730173872895,0.070541,70934.0,70933.0,0.070542]
[1730173874696,0.071541,70934.0,70933.0,0.070542]
[1730173875596,0.072541,70934.0,70933.0,0.070542]
[1730173876198,0.072541,70934.0,70933.0,0.431342]
[1730173876898,0.072541,70934.0,70933.0,0.070542]
[1730173877404,0.072541,70934.0,70933.0,0.431342]
[1730173879001,0.03724217,70934.0,70933.0,0.431342]
[1730173879713,0.03724217,70934.0,70933.0,0.60905782]
[1730173879998,0.03724217,70934.0,70933.0,0.50153793]
[1730173880504,0.002,70934.0,70933.0,0.85840986]
[1730173882311,0.3608,70946.0,70933.0,1.2950132]
[1730173882607,0.070526,70950.0,70945.0,0.10817711]
[1730173882804,0.070526,70950.0,70949.0,0.070526]
[1730173883192,0.070526,70950.0,70949.0,0.12682159]
[1730173883399,0.10817711,70952.0,70949.0,0.05629559]
[1730173883702,0.17870011,70952.0,70951.0,0.070524]
[1730173883905,0.10817711,70952.0,70951.0,0.070524]
[1730173884094,0.00395501,70955.0,70954.0,0.070521]
[1730173884291,0.07263501,70955.0,70954.0,0.070521]
[1730173884803,0.00211501,70955.0,70954.0,0.070521]
[1730173885005,0.00211501,70955.0,70954.0,0.12681861]
[1730173885308,0.00311501,70955.0,70954.0,0.12781861]
[1730173885600,0.00311501,70955.0,70954.0,0.071521]
[1730173886202,0.00311501,70955.0,70954.0,0.11374368]
[1730173886404,0.00311501,70955.0,70954.0,0.071521]
[1730173886807,0.00411501,70955.0,70954.0,0.073521]
[1730173889099,0.00411501,70955.0,70954.0,0.18169811]
[1730173889707,0.00411501,70955.0,70954.0,0.19314979]
[1730173890303,0.002,70955.0,70954.0,0.19314979]
[1730173890603,0.002,70955.0,70954.0,0.08497268]
[1730173891193,0.002,70955.0,70954.0,0.19314979]
[1730173896208,0.002,70955.0,70954.0,0.76417328]
[1730173896804,0.002,70955.0,70954.0,0.97588827]
[1730173897014,0.431307,70969.0,70968.0,0.070508]
[1730173897223,0.3608,70969.0,70968.0,0.070508]
[1730173897516,0.39533743,70969.0,70968.0,0.070508]
[1730173897711,0.39533743,70969.0,70968.0,0.118008]
[1730173897914,0.3608,70969.0,70968.0,0.118008]
[1730173898209,0.3608,70969.0,70968.0,0.12942291]
[1730173898518,0.433307,70969.0,70968.0,0.12942291]
[1730173898819,0.072507,70969.0,70968.0,0.12942291]
[1730173899410,0.002,70969.0,70968.0,0.13042291]
[1730173900310,0.002,70969.0,70968.0,0.28550002]
[1730173904705,0.002,70969.0,70968.0,0.13042291]
[1730173905313,0.002,70969.0,70968.0,0.23860002]
[1730173906010,0.002,70969.0,70968.0,0.19110002]
[1730173911120,0.002,70969.0,70968.0,0.55190002]
[1730173911621,0.002,70969.0,70968.0,0.76414933]
[1730173913223,0.002,70969.0,70968.0,0.87232644]
[1730173913811,0.002,70969.0,70968.0,0.76414933]
[1730173914528,0.002,70969.0,70968.0,1.08233174]
[1730173914819,0.070491,70984.0,70983.0,0.070492]
[1730173915027,0.070491,70984.0,70983.0,0.17866911]
[1730173916026,0.14830043,70984.0,70983.0,0.17966911]
[1730173916718,0.15030043,70984.0,70983.0,0.10917711]
[1730173916923,0.15030043,70984.0,70983.0,0.17966911]
[1730173917121,0.15030043,70984.0,70983.0,0.10917711]
[1730173917320,0.07980979,70984.0,70983.0,0.17966911]
[1730173917629,0.002,70984.0,70983.0,0.17966911]
[1730173918322,0.03652938,70984.0,70983.0,0.17966911]
[1730173918716,0.07980956,70984.0,70983.0,0.17966911]
[1730173919224,0.10702038,70984.0,70983.0,0.17966911]
[1730173919628,0.03652938,70984.0,70983.0,0.17966911]
[1730173919924,0.03652938,70984.0,70983.0,0.19112906]
[1730173920725,0.03452827,70984.0,70983.0,0.19112906]
[1730173920921,0.03652827,70984.0,70983.0,0.19012906]
[1730173921121,0.03652827,70984.0,70983.0,0.19112906]
[1730173921322,0.002,70984.0,70983.0,0.19112906]
[1730173921533,0.04527836,70984.0,70983.0,0.19112906]
[1730173921722,0.07980663,70984.0,70983.0,0.19112906]
[1730173922325,0.07980663,70984.0,70983.0,0.19012906]
[1730173922534,0.07980663,70984.0,70983.0,0.19112906]
[1730173923727,0.002,70984.0,70983.0,0.19112906]
[1730173926438,0.002,70984.0,70983.0,0.15406887]
[1730173927535,0.002,70984.0,70983.0,0.08295195]
[1730173927729,0.002,70984.0,70983.0,0.15406887]
[1730173928129,0.002,70984.0,70983.0,0.51486887]
[1730173930835,0.04527773,70984.0,70983.0,0.51486887]
[1730173931040,0.15481621,70984.0,70983.0,0.51486887]
[1730173931233,0.23262132,70984.0,70983.0,0.51486887]
[1730173931428,0.03652738,70984.0,70983.0,0.58598579]
[1730173931627,0.03652738,70984.0,70983.0,0.72685999]
[1730173931936,0.03652738,70984.0,70983.0,1.00980475]
[1730173932133,0.03652738,70984.0,70983.0,0.93868783]
[1730173932534,0.03652738,70984.0,70983.0,0.97592892]
[1730173934637,0.002,70984.0,70983.0,0.97592892]
[1730173935325,0.03652259,70984.0,70983.0,0.97592892]
[1730173935529,0.03652285,70984.0,70983.0,0.97592892]
[1730173936347,0.07779485,70984.0,70983.0,0.44375195]
[1730173936642,0.072491,70984.0,70983.0,0.37325995]
[1730173936944,0.072491,70984.0,70975.0,0.36152]
[1730173936945,0.070499,70976.0,70975.0,0.36152]
[1730173937134,0.070499,70976.0,70975.0,0.37215496]
[1730173937135,0.10502185,70976.0,70975.0,0.37215496]
[1730173937335,0.14829385,70976.0,70975.0,0.37215496]
[1730173938143,0.14929385,70976.0,70975.0,0.01835496]
[1730173938646,0.070508,70967.0,70965.0,0.3608]
[1730173940153,0.071508,70967.0,70965.0,0.3608]
[1730173940449,0.001,70967.0,70966.0,0.17886701]
[1730173940648,0.0982,70971.0,70966.0,0.17886701]
[1730173940843,0.0982,70971.0,70965.0,0.3638]
[1730173940844,0.0982,70971.0,70970.0,0.17886301]
[1730173941647,0.168704,70971.0,70970.0,0.10835801]
[1730173942254,0.168704,70971.0,70966.0,0.17886701]
[1730173942653,0.170704,70971.0,70966.0,0.17886701]
[1730173942947,0.170704,70971.0,70967.0,0.070508]
[1730173943351,0.170704,70971.0,70966.0,0.10835801]
[1730173943546,0.122904,70971.0,70970.0,0.070505]
[1730173944447,0.122904,70971.0,70970.0,0.17886301]
[1730173945453,0.0524,70971.0,70970.0,0.17886301]
[1730173945654,0.002,70971.0,70970.0,0.17886301]
[1730173946350,0.3608,70978.0,70974.0,0.070501]
[1730173946655,0.0471,70979.0,70978.0,0.070497]
[1730173946852,0.00211411,70982.0,70975.0,0.10835801]
[1730173947049,0.00211411,70982.0,70980.0,0.17885301]
[1730173948557,0.00211411,70982.0,70980.0,0.070495]
[1730173949459,0.00411411,70982.0,70980.0,0.070495]
[1730173950657,0.00411411,70982.0,70981.0,0.3608]
[1730173950955,0.00411411,70982.0,70976.0,0.070499]
[1730173951253,0.00411411,70982.0,70980.0,0.070495]
[1730173951454,0.07460711,70982.0,70980.0,0.070495]
[1730173952257,0.00411411,70982.0,70980.0,0.070495]
[1730173952448,0.00411411,70982.0,70979.0,0.10835801]
[1730173952649,0.070496,70979.0,70976.0,0.070499]
[1730173952855,0.070496,70979.0,70975.0,0.10835801]
[1730173953155,0.070496,70979.0,70978.0,0.070497]
[1730173953659,0.00411411,70982.0,70975.0,0.1198734]
[1730173953856,0.00411411,70982.0,70981.0,0.10835801]
[1730173954054,0.00411411,70982.0,70981.0,0.17885201]
[1730173954454,0.07460711,70982.0,70981.0,0.17885201]
[1730173954659,0.07460711,70982.0,70981.0,0.070494]
[1730173955653,0.07260711,70982.0,70981.0,0.070494]
[1730173956262,0.07460711,70982.0,70981.0,0.070494]
[1730173957350,0.07460711,70982.0,70981.0,0.08189212]
[1730173959364,0.07460711,70982.0,70981.0,0.19025013]
[1730173968180,0.07460711,70982.0,70981.0,0.08189212]
[1730173969279,0.15241503,70982.0,70981.0,0.08189212]
[1730173969784,0.07460711,70982.0,70981.0,0.08189212]
[1730173972571,0.07460711,70982.0,70981.0,0.01139812]
[1730173972772,0.070496,70979.0,70978.0,0.3608]
[1730173973271,0.070496,70979.0,70978.0,0.37259941]
[1730173973882,0.14162153,70979.0,70978.0,0.37259941]
[1730173974076,0.2194361,70979.0,70978.0,0.37259941]
[1730173974676,0.14831057,70979.0,70978.0,0.37259941]
[1730173975782,0.14831057,70979.0,70978.0,0.01179941]
[1730173975984,0.070499,70976.0,70975.0,0.3608]
[1730173977288,0.071499,70976.0,70975.0,0.3608]
[1730173977783,0.071499,70976.0,70975.0,0.3618]
[1730173978785,0.071499,70976.0,70975.0,0.37345247]
[1730173980082,0.070499,70976.0,70975.0,0.37245247]
[1730173980278,0.072499,70976.0,70975.0,0.37245247]
[1730173980679,0.070499,70976.0,70975.0,0.37245247]
[1730173980879,0.072499,70976.0,70975.0,0.37245247]
[1730173981379,0.070499,70976.0,70975.0,0.37245247]
[1730173982885,0.072499,70976.0,70975.0,0.37245247]
[1730173983389,0.070499,70976.0,70975.0,0.37245247]
[1730173984285,0.10503025,70976.0,70975.0,0.37245247]
[1730173986689,0.03453125,70976.0,70975.0,0.55134258]
[1730173986888,0.07260711,70982.0,70981.0,0.070494]
[1730173987092,0.10713674,70982.0,70981.0,0.17888411]
[1730173988982,0.10713636,70982.0,70981.0,0.17888411]
[1730173989595,0.10913636,70982.0,70981.0,0.53968411]
[1730173990180,0.10713636,70982.0,70981.0,0.53968411]
[1730173990385,0.10913636,70982.0,70981.0,0.53968411]
[1730173990586,0.10913636,70982.0,70981.0,0.431294]
[1730173991096,0.07460711,70982.0,70981.0,0.3608]
[1730173994897,0.00411411,70982.0,70981.0,0.53968411]
[1730173995087,0.00411411,70982.0,70981.0,0.75127029]
[1730173995590,0.00411411,70982.0,70981.0,0.79687029]
[1730173996601,0.00311411,70982.0,70981.0,0.76059721]
[1730173996788,0.00411411,70982.0,70981.0,0.76059721]
[1730173999095,0.03863929,70982.0,70981.0,0.76059721]
[1730173999490,0.03763929,70982.0,70981.0,0.75959721]
[1730173999684,0.03552518,70982.0,70981.0,0.76159721]
[1730174000189,0.002,70982.0,70981.0,0.76159721]
[1730174001186,0.001,70982.0,70981.0,0.76059721]
[1730174001387,0.07111703,71002.0,70981.0,0.69010321]
[1730174001599,0.070477,70998.0,70996.0,0.14159603]
[1730174001894,0.03452294,70997.0,70996.0,0.14159603]
[1730174002787,0.10500094,70997.0,70996.0,0.14159603]
[1730174003198,0.10500094,70997.0,70996.0,0.50239603]
[1730174003396,0.3608,71003.0,70996.0,0.50239603]
[1730174003592,0.39488,71033.0,70996.0,0.50239603]
[1730174003593,0.002,70997.0,70996.0,0.431279]
[1730174004294,0.002,70997.0,70996.0,0.432279]
[1730174004798,0.002,70997.0,70996.0,0.50239603]
[1730174004999,0.002,70997.0,70996.0,0.50339603]
[1730174005302,0.070467,71009.0,71004.0,0.070471]
[1730174005491,0.03663062,71005.0,71004.0,0.14158803]
[1730174005797,0.00211301,71005.0,71004.0,0.14158803]
[1730174006297,0.00211301,71005.0,71004.0,0.35257354]
[1730174007089,0.00411301,71005.0,71004.0,0.35257354]
[1730174007309,0.002,71005.0,71004.0,0.35257354]
[1730174007500,0.002,71005.0,71004.0,0.35357354]
[1730174008302,0.002,71005.0,71004.0,0.36489798]
[1730174008498,0.002,71005.0,71004.0,0.40211049]
[1730174009695,0.002,71005.0,71004.0,0.51044003]
[1730174009892,0.002,71005.0,71004.0,0.61413778]
[1730174011412,0.002,71005.0,71004.0,0.40211049]
[1730174012395,0.002,71005.0,71004.0,0.52339049]
[1730174013200,0.3608,71026.0,71014.0,0.070461]
[1730174013201,0.07045,71025.0,71014.0,0.070461]
[1730174013400,0.070456,71020.0,71019.0,0.10832954]
[1730174014205,0.10496759,71020.0,71019.0,0.10832954]
[1730174014512,0.070457,71019.0,71016.0,0.3608]
[1730174014811,0.03451159,71018.0,71016.0,0.3608]
[1730174015306,0.03451159,71018.0,71016.0,0.431259]
[1730174016300,0.03451159,71018.0,71016.0,0.3608]
[1730174016506,0.10496959,71017.0,71016.0,0.3608]
[1730174016899,0.10496959,71017.0,71016.0,0.3618]
[1730174018302,0.10696959,71017.0,71016.0,0.3618]
[1730174018908,0.10696959,71017.0,71016.0,0.37360053]
[1730174019213,0.15022862,71017.0,71016.0,0.37360053]
[1730174021110,0.072458,71017.0,71016.0,0.37360053]
[1730174022016,0.072458,71017.0,71016.0,0.44405953]
[1730174024007,0.072458,71017.0,71007.0,0.00076]
[1730174024008,0.070467,71008.0,71007.0,0.00076]
[1730174024317,0.070472,71003.0,71002.0,0.3608]
[1730174024618,0.17880154,71003.0,71002.0,0.3608]
[1730174025103,0.17880154,71003.0,71002.0,0.37232215]
[1730174025917,0.070472,71003.0,71002.0,0.37232215]
[1730174026114,0.05,77000.0,71002.0,0.37232215]
[1730174026115,0.070467,71008.0,71006.0,0.070469]
[1730174026313,0.070468,71007.0,71006.0,0.10832954]
[1730174026624,0.07047,71006.0,71003.0,0.10832954]
[1730174026810,0.070471,71004.0,71003.0,0.10832954]
[1730174027012,0.070471,71004.0,71003.0,0.21154284]
[1730174028319,0.072471,71004.0,71003.0,0.21154284]
[1730174028509,0.002,71004.0,71003.0,0.39034438]
[1730174030114,0.002,71004.0,71003.0,0.43514438]
[1730174033519,0.002,71004.0,71003.0,0.79594438]
[1730174033828,0.002,71004.0,71003.0,0.84134438]
[1730174036320,0.07977887,71004.0,71003.0,0.84134438]
[1730174040627,0.07977887,71004.0,71003.0,1.4746517]
[1730174040926,0.04525941,71004.0,71003.0,1.4746517]
[1730174041117,0.002,71004.0,71003.0,1.4746517]
[1730174041827,0.07977218,71004.0,71003.0,1.4746517]
[1730174043123,0.15024504,71004.0,71003.0,0.66254284]
[1730174043429,0.070472,71003.0,70998.0,0.3608]
[1730174043616,0.070476,70999.0,70998.0,0.3608]
[1730174044632,0.493036,70999.0,70998.0,0.3608]
[1730174044823,0.495036,70999.0,70998.0,0.3608]
[1730174045225,0.072476,70999.0,70998.0,0.3608]
[1730174056125,0.002,70999.0,70998.0,0.46912954]
[1730174056324,0.002,70999.0,70998.0,0.53960654]
[1730174059329,0.03651912,70999.0,70998.0,0.53960654]
[1730174059743,0.03651912,70999.0,70998.0,0.46912954]
[1730174059744,0.10699512,70999.0,70998.0,0.46912954]
[1730174059929,0.072476,70999.0,70998.0,0.3608]
[1730174062340,0.15026376,70999.0,70998.0,0.3608]
[1730174063832,0.10699568,70999.0,70998.0,0.3608]
[1730174064041,0.10699568,70999.0,70998.0,0.431277]
[1730174066144,0.072476,70999.0,70998.0,0.431277]
[1730174068148,0.002,70999.0,70998.0,0.472877]
[1730174069145,0.072476,70999.0,70998.0,0.472877]
[1730174071347,0.002,70999.0,70998.0,0.58120654]
[1730174074547,0.07978908,70999.0,70998.0,0.58120654]
[1730174076850,0.03652027,70999.0,70998.0,1.00392294]
[1730174077150,0.00211283,71014.0,70999.0,0.070476]
[1730174077344,0.0432615,71012.0,71011.0,0.070464]
[1730174078956,0.00211283,71014.0,71008.0,0.10832954]
[1730174079148,0.04326161,71013.0,71012.0,0.070463]
[1730174080354,0.11472361,71013.0,71012.0,0.071463]
[1730174081151,0.071462,71013.0,71012.0,0.071463]
[1730174081756,0.071462,71013.0,71012.0,0.001]
[1730174082056,0.17979154,71013.0,71012.0,0.001]
[1730174082255,0.22199154,71013.0,71012.0,0.001]
[1730174082560,0.64447154,71013.0,71012.0,0.001]
[1730174082755,0.75280108,71013.0,71012.0,0.001]
[1730174082964,0.75280108,71013.0,70992.0,0.070482]
[1730174082965,0.070476,70999.0,70992.0,0.070482]
[1730174083165,0.070482,70993.0,70992.0,0.070482]
[1730174083655,0.070482,70993.0,70989.0,0.49172]
[1730174083656,0.070484,70991.0,70989.0,0.49172]
[1730174083850,0.070484,70991.0,70989.0,0.561485]
[1730174084062,0.070484,70991.0,70990.0,0.28049301]
[1730174086458,0.071484,70991.0,70990.0,0.28049301]
[1730174086859,0.071484,70991.0,70990.0,0.28149301]
[1730174087158,0.070484,70991.0,70990.0,0.28149301]
[1730174087859,0.10832954,71010.0,70990.0,0.21100801]
[1730174088064,0.070476,71000.0,70997.0,0.070478]
[1730174088255,0.070471,71004.0,71001.0,0.070473]
[1730174088454,0.0822,71013.0,71001.0,0.3608]
[1730174088660,0.070468,71007.0,71005.0,0.07047]
[1730174089052,0.070468,71007.0,71002.0,0.0859]
[1730174089053,0.070468,71007.0,71006.0,0.070469]
[1730174089359,0.10498582,71007.0,71006.0,0.17879854]
[1730174089961,0.10598582,71007.0,71006.0,0.17879854]
[1730174091474,0.070472,71004.0,71002.0,0.070473]
[1730174091758,0.070472,71004.0,71001.0,0.3608]
[1730174091759,0.070472,71004.0,71003.0,0.070472]
[1730174091960,0.070473,71002.0,71001.0,0.3608]
[1730174092961,0.070476,71000.0,70997.0,0.01164721]
[1730174093160,0.10832954,71005.0,70998.0,0.070477]
[1730174093365,0.10832954,71005.0,71001.0,0.001]
[1730174093366,0.070473,71002.0,71001.0,0.001]
[1730174093562,0.10499315,71002.0,71001.0,0.001]
[1730174094564,0.14826231,71002.0,71001.0,0.001]
[1730174094862,0.07778931,71002.0,70998.0,0.17880654]
[1730174095064,0.070476,70999.0,70998.0,0.17880654]
[1730174095264,0.10499615,70999.0,70998.0,0.17880654]
[1730174095462,0.10499615,70999.0,70998.0,0.39103952]
[1730174096168,0.070476,70999.0,70998.0,0.39203952]
[1730174096460,0.071476,70999.0,70998.0,0.39203952]
[1730174097656,0.071476,70999.0,70998.0,0.39103952]
[1730174097856,0.071476,70999.0,70998.0,0.28670998]
[1730174098065,0.071476,70999.0,70998.0,0.39503952]
[1730174100170,0.071476,70999.0,70998.0,0.28670998]
[1730174101063,0.17980554,70999.0,70998.0,0.004]
[1730174101268,0.071476,70999.0,70998.0,0.004]
[1730174101872,0.070478,70997.0,70996.0,0.01146159]
[1730174102074,0.002,70999.0,70994.0,0.070481]
[1730174102275,0.07048,70995.0,70994.0,0.070481]
[1730174102471,0.07048,70995.0,70994.0,0.17881054]
[1730174104072,0.10500269,70995.0,70994.0,0.19056517]
[1730174104274,0.10600269,70995.0,70994.0,0.19056517]
[1730174104673,0.10600269,70995.0,70994.0,0.19356517]
[1730174105084,0.03552269,70995.0,70994.0,0.19356517]
[1730174105384,0.001,70995.0,70994.0,0.19356517]
[1730174105588,0.03552122,70995.0,70994.0,0.19356517]
[1730174106288,0.001,70995.0,70994.0,0.19356517]
[1730174106491,0.001,70995.0,70994.0,0.40429955]
[1730174106786,0.0355209,70995.0,70994.0,0.40429955]
[1730174107383,0.001,70995.0,70994.0,0.40429955]
[1730174109586,0.03552068,70995.0,70994.0,0.40429955]
[1730174111194,0.001,70995.0,70994.0,0.40429955]
[1730174114592,0.001,70995.0,70994.0,0.46060008]
[1730174115389,0.001,70995.0,70994.0,0.40429955]
[1730174125798,0.001,70995.0,70994.0,0.47467517]
[1730174126401,0.001,70995.0,70994.0,0.40429955]
[1730174127813,0.070462,71013.0,71012.0,0.070463]
[1730174127994,0.10497822,71013.0,71010.0,0.070464]
[1730174128304,0.10497822,71013.0,71003.0,0.3608]
[1730174128305,0.070464,71011.0,71005.0,0.10832954]
[1730174128509,0.070467,71008.0,71006.0,0.14156447]
[1730174128803,0.070467,71008.0,71006.0,0.35399631]
[1730174129106,0.070467,71008.0,71007.0,0.070468]
[1730174129504,0.070467,71008.0,71007.0,0.28247517]
[1730174129906,0.071467,71008.0,71007.0,0.28247517]
[1730174131097,0.1059824,71008.0,71007.0,0.28247517]
[1730174131301,0.001,71008.0,71007.0,0.28247517]
[1730174131705,0.001,71008.0,71007.0,0.28347517]
[1730174132612,0.001,71008.0,71007.0,0.29476175]
[1730174134722,0.001,71008.0,71007.0,0.36585722]
[1730174144619,0.071467,71008.0,71007.0,0.36585722]
[1730174149413,0.14924424,71008.0,71007.0,0.36585722]
[1730174149706,0.14924424,71008.0,71007.0,0.29476175]
[1730174149912,0.14924424,71008.0,71007.0,0.36585722]
[1730174150313,0.14924414,71008.0,71007.0,0.36585722]
[1730174152024,0.07877714,71008.0,71007.0,0.36585722]
[1730174152717,0.03551497,71008.0,71007.0,0.36585722]
[1730174154222,0.07877621,71008.0,71007.0,0.36585722]
[1730174154426,0.03551497,71008.0,71007.0,0.36585722]
[1730174155029,0.03551423,71008.0,71007.0,0.36585722]
[1730174155618,0.0787754,71008.0,71007.0,0.36585722]
[1730174156438,0.001,71008.0,71007.0,0.36585722]
[1730174157529,0.001,71008.0,71007.0,0.40813865]
[1730174164525,0.001,71008.0,71007.0,0.36585722]
[1730174164724,0.001,71008.0,71007.0,0.43695269]
[1730174165427,0.03551396,71008.0,71007.0,0.43695269]
[1730174167128,0.07877337,71008.0,71007.0,0.43695269]
[1730174167438,0.03551396,71008.0,71007.0,0.43695269]
[1730174168139,0.001,71008.0,71007.0,0.43695269]
[1730174168325,0.03551396,71008.0,71007.0,0.43695269]
[1730174171541,0.001,71008.0,71007.0,0.43695269]
[1730174171840,0.001,71008.0,71007.0,0.36585722]
[1730174172026,0.001,71008.0,71007.0,0.43695269]
[1730174172335,0.001,71008.0,71007.0,0.43595269]
[1730174172531,0.001,71008.0,71007.0,0.43695269]
[1730174173145,0.07046,71016.0,71007.0,0.29538922]
[1730174173436,0.07046,71016.0,71015.0,0.07109547]
[1730174175036,0.07046,71015.0,71014.0,0.36152]
[1730174175348,0.14155547,71015.0,71014.0,0.3608]
[1730174176148,0.070466,71009.0,71008.0,0.19791705]
[1730174177131,0.070466,71009.0,71008.0,0.14156247]
[1730174177331,0.001,71015.0,71011.0,0.070464]
[1730174177537,0.070461,71014.0,71013.0,0.3608]
[1730174178537,0.070461,71014.0,71013.0,0.431262]
[1730174178538,0.07777356,71014.0,71013.0,0.431262]
[1730174179245,0.14923456,71014.0,71013.0,0.431262]
[1730174179643,0.14923456,71014.0,71013.0,0.432262]
[1730174186647,0.071461,71014.0,71013.0,0.432262]
[1730174186848,0.001,71014.0,71013.0,0.432262]
[1730174193643,0.04425918,71014.0,71013.0,0.432262]
[1730174194141,0.07877176,71014.0,71013.0,0.432262]
[1730174195252,0.07877176,71014.0,71013.0,0.071462]
[1730174197545,0.03551263,71014.0,71013.0,0.071462]
[1730174197949,0.07877187,71014.0,71013.0,0.071462]
[1730174201751,0.001,71014.0,71013.0,0.071462]
[1730174207754,0.071461,71014.0,71013.0,0.071462]
[1730174216654,0.1492347,71014.0,71013.0,0.071462]
[1730174217253,0.14923507,71014.0,71013.0,0.071462]
[1730174220962,0.14923517,71014.0,71013.0,0.071462]
[1730174221168,0.14923517,71014.0,71013.0,0.001]
[1730174223674,0.071461,71014.0,71013.0,0.001]
[1730174225574,0.071461,71014.0,71013.0,0.071462]
[1730174225876,0.071461,71014.0,71013.0,0.001]
[1730174235273,0.001,71014.0,71013.0,0.071462]
[1730174235474,0.00211272,71023.0,71013.0,0.071462]
[1730174235475,0.00211272,71023.0,71022.0,0.070453]
[1730174235781,0.00211272,71023.0,71022.0,0.50234847]
[1730174236776,0.00311272,71023.0,71022.0,0.50234847]
[1730174237376,0.00311272,71023.0,71022.0,0.50334847]
[1730174238296,0.00311272,71023.0,71022.0,0.14254847]
[1730174238797,0.08087795,71023.0,71022.0,0.1045999]
[1730174240092,0.08087795,71023.0,71022.0,0.38616718]
[1730174240400,0.08087795,71023.0,71022.0,0.31507171]
[1730174240401,0.07876334,71023.0,71022.0,0.31507171]
[1730174240697,0.07876334,71023.0,71022.0,0.24397624]
[1730174240895,0.14921534,71023.0,71022.0,0.001]
[1730174241286,0.22436891,71023.0,71022.0,0.001]
[1730174241594,0.30213225,71023.0,71022.0,0.001]
[1730174242000,0.14921534,71023.0,71022.0,0.001]
[1730174242294,0.23601534,71023.0,71022.0,0.001]
[1730174243907,0.19301534,71023.0,71022.0,0.001]
[1730174246813,0.115252,71023.0,71022.0,0.001]
[1730174247400,0.115252,71023.0,71022.0,0.14254847]
[1730174247401,0.001,71023.0,71022.0,0.14254847]
[1730174249112,0.001,71023.0,71022.0,0.18394847]
[1730174253808,0.07876338,71023.0,71022.0,0.14222522]
[1730174254008,0.15391691,71023.0,71022.0,0.14222522]
[1730174254304,0.07876338,71023.0,71022.0,0.14222522]
[1730174255811,0.07876338,71023.0,71022.0,0.21332069]
[1730174256007,0.15387491,71023.0,71022.0,0.21332069]
[1730174256211,0.07876338,71023.0,71022.0,0.14222522]
[1730174256415,0.07876338,71023.0,71022.0,0.42313379]
[1730174257812,0.03550886,71023.0,71022.0,0.42313379]
[1730174258207,0.03550886,71023.0,71022.0,0.35203832]
[1730174258411,0.03550886,71023.0,71022.0,0.42313379]
[1730174259116,0.03550886,71023.0,71022.0,0.35203832]
[1730174259416,0.03550586,71023.0,71022.0,0.42313379]
[1730174259816,0.07875662,71023.0,71022.0,0.42313379]
[1730174261531,0.07875662,71023.0,71022.0,0.35203832]